Workbook

Sheet P&L to Budget
BZ1: TOTAL
F2: Jan 23 | H2: Budget | J2: $ Over Budget | L2: % of Budget | N2: Feb 23 | P2: Budget | R2: $ Over Budget | T2: % of Budget | V2: Mar 23 | X2: Budget | Z2: $ Over Budget | AB2: % of Budget | AD2: Apr 23 | AF2: Budget | AH2: $ Over Budget | AJ2: % of Budget | AL2: May 23 | AN2: Budget | AP2: $ Over Budget | AR2: % of Budget | AT2: Jun 23 | AV2: Budget | AX2: $ Over Budget | AZ2: % of Budget | BB2: Jul 23 | BD2: Budget | BF2: $ Over Budget | BH2: % of Budget | BJ2: Aug 23 | BL2: Budget | BN2: $ Over Budget | BP2: % of Budget | BR2: Sep 23 | BT2: Budget | BV2: $ Over Budget | BX2: % of Budget | BZ2: Jan - Sep 23 | CB2: Budget | CD2: $ Over Budget | CF2: % of Budget
B3: Ordinary Income/Expense
D4: Income
E5: 40000 · Member Dues and Fees | F5: 66850 | H5: 66250 | J5: =ROUND((F5-H5),5) -> 600 | L5: =ROUND(IF(H5=0, IF(F5=0, 0, 1), F5/H5),5) -> 1.00906 | N5: 65350 | P5: 66250 | R5: =ROUND((N5-P5),5) -> -900 | T5: =ROUND(IF(P5=0, IF(N5=0, 0, 1), N5/P5),5) -> 0.98642 | V5: 71300 | X5: 66250 | Z5: =ROUND((V5-X5),5) -> 5050 | AB5: =ROUND(IF(X5=0, IF(V5=0, 0, 1), V5/X5),5) -> 1.07623 | AD5: 64050 | AF5: 66250 | AH5: =ROUND((AD5-AF5),5) -> -2200 | AJ5: =ROUND(IF(AF5=0, IF(AD5=0, 0, 1), AD5/AF5),5) -> 0.96679 | AL5: 71800 | AN5: 66250 | AP5: =ROUND((AL5-AN5),5) -> 5550 | AR5: =ROUND(IF(AN5=0, IF(AL5=0, 0, 1), AL5/AN5),5) -> 1.08377 | AT5: 70300 | AV5: 66250 | AX5: =ROUND((AT5-AV5),5) -> 4050 | AZ5: =ROUND(IF(AV5=0, IF(AT5=0, 0, 1), AT5/AV5),5) -> 1.06113 | BB5: 63550 | BD5: 66250 | BF5: =ROUND((BB5-BD5),5) -> -2700 | BH5: =ROUND(IF(BD5=0, IF(BB5=0, 0, 1), BB5/BD5),5) -> 0.95925 | BJ5: 80050 | BL5: 66250 | BN5: =ROUND((BJ5-BL5),5) -> 13800 | BP5: =ROUND(IF(BL5=0, IF(BJ5=0, 0, 1), BJ5/BL5),5) -> 1.2083 | BR5: 72300 | BT5: 66250 | BV5: =ROUND((BR5-BT5),5) -> 6050 | BX5: =ROUND(IF(BT5=0, IF(BR5=0, 0, 1), BR5/BT5),5) -> 1.09132 | BZ5: =ROUND(F5+N5+V5+AD5+AL5+AT5+BB5+BJ5+BR5,5) -> 625550 | CB5: =ROUND(H5+P5+X5+AF5+AN5+AV5+BD5+BL5+BT5,5) -> 596250 | CD5: =ROUND((BZ5-CB5),5) -> 29300 | CF5: =ROUND(IF(CB5=0, IF(BZ5=0, 0, 1), BZ5/CB5),5) -> 1.04914
E6: 40100 · Meal Sales | F6: 41371 | H6: 19000 | J6: 22371 | L6: 2.17742 | N6: 45613 | P6: 33000 | R6: 12613 | T6: 1.38221 | V6: 55366 | X6: 63801 | Z6: -8435 | AB6: 0.86779 | AD6: 86873 | AF6: 83300 | AH6: 3573 | AJ6: 1.04289 | AL6: 83229 | AN6: 80714 | AP6: 2515 | AR6: 1.03116 | AT6: 102719 | AV6: 92182 | AX6: 10537 | AZ6: 1.11431 | BB6: 70696 | BD6: 88295 | BF6: -17599 | BH6: 0.80068 | BJ6: 100492 | BL6: 81247 | BN6: 19245 | BP6: 1.23687 | BR6: 111883 | BT6: 81590 | BV6: 30293 | BX6: 1.37128 | BZ6: 698242 | CB6: 623129 | CD6: 75113 | CF6: 1.12054
E7: 40200 · Beverage Sales | F7: 8739 | H7: 5063 | J7: 3676 | L7: 1.72605 | N7: 6249 | P7: 6289 | R7: -40 | T7: 0.99364 | V7: 9893 | X7: 9000 | Z7: 893 | AB7: 1.09922 | AD7: 23777 | AF7: 13000 | AH7: 10777 | AJ7: 1.829 | AL7: 7710 | AN7: 13000 | AP7: -5290 | AR7: 0.59308 | AT7: 11378 | AV7: 16000 | AX7: -4622 | AZ7: 0.71113 | BB7: 7883 | BD7: 15000 | BF7: -7117 | BH7: 0.52553 | BJ7: 19657 | BL7: 14000 | BN7: 5657 | BP7: 1.40407 | BR7: 9778 | BT7: 13000 | BV7: -3222 | BX7: 0.75215 | BZ7: 105064 | CB7: 104352 | CD7: 712 | CF7: 1.00682
E8: 40300 · Service Fees | F8: 4330 | H8: 578 | J8: 3752 | L8: 7.49135 | N8: 3047 | P8: 539 | R8: 2508 | T8: 5.65306 | V8: 3287 | X8: 6894 | Z8: -3607 | AB8: 0.47679 | AD8: 12027 | AF8: 9006 | AH8: 3021 | AJ8: 1.33544 | AL8: 4766 | AN8: 9025 | AP8: -4259 | AR8: 0.52809 | AT8: 9385 | AV8: 9388 | AX8: -3 | AZ8: 0.99968 | BB8: 5977 | BD8: 9058 | BF8: -3081 | BH8: 0.65986 | BJ8: 10078 | BL8: 8551 | BN8: 1527 | BP8: 1.17858 | BR8: 10616 | BT8: 8379 | BV8: 2237 | BX8: 1.26698 | BZ8: 63513 | CB8: 61418 | CD8: 2095 | CF8: 1.03411
E9: 40400 · Rental Income | F9: 0 | H9: 0 | J9: 0 | L9: 0 | N9: 0 | P9: 152 | R9: -152 | T9: 0 | V9: 0 | X9: 2600 | Z9: -2600 | AB9: 0 | AD9: 3132 | AF9: 2600 | AH9: 532 | AJ9: 1.20462 | AL9: 140 | AN9: 2600 | AP9: -2460 | AR9: 0.05385 | AT9: 15449 | AV9: 2600 | AX9: 12849 | AZ9: 5.94192 | BB9: 1000 | BD9: 2600 | BF9: -1600 | BH9: 0.38462 | BJ9: 6900 | BL9: 2600 | BN9: 4300 | BP9: 2.65385 | BR9: 7120 | BT9: 2600 | BV9: 4520 | BX9: 2.73846 | BZ9: 33741 | CB9: 18352 | CD9: 15389 | CF9: 1.83855
E10: 40800 · Other Income | F10: 675 | H10: 168 | J10: 507 | L10: 4.01786 | N10: 300 | P10: 919 | R10: -619 | T10: 0.32644 | V10: 71 | X10: 553 | Z10: -482 | AB10: 0.12839 | AD10: 430 | AF10: 670 | AH10: -240 | AJ10: 0.64179 | AL10: 230 | AN10: 757 | AP10: -527 | AR10: 0.30383 | AT10: 165 | AV10: 1402 | AX10: -1237 | AZ10: 0.11769 | BB10: 350 | BD10: 1335 | BF10: -985 | BH10: 0.26217 | BJ10: 578 | BL10: 1298 | BN10: -720 | BP10: 0.4453 | BR10: 524 | BT10: 601 | BV10: -77 | BX10: 0.87188 | BZ10: 3323 | CB10: 7703 | CD10: -4380 | CF10: 0.43139
D11: Total Income | F11: =ROUND(SUM(F4:F10),5) -> 121965 | H11: =ROUND(SUM(H4:H10),5) -> 91059 | J11: 30906 | L11: 1.33941 | N11: =ROUND(SUM(N4:N10),5) -> 120559 | P11: =ROUND(SUM(P4:P10),5) -> 107149 | R11: 13410 | T11: 1.12515 | V11: =ROUND(SUM(V4:V10),5) -> 139917 | X11: =ROUND(SUM(X4:X10),5) -> 149098 | Z11: -9181 | AB11: 0.93842 | AD11: =ROUND(SUM(AD4:AD10),5) -> 190289 | AF11: =ROUND(SUM(AF4:AF10),5) -> 174826 | AH11: 15463 | AJ11: 1.08845 | AL11: =ROUND(SUM(AL4:AL10),5) -> 167875 | AN11: =ROUND(SUM(AN4:AN10),5) -> 172346 | AP11: -4471 | AR11: 0.97406 | AT11: =ROUND(SUM(AT4:AT10),5) -> 209396 | AV11: =ROUND(SUM(AV4:AV10),5) -> 187822 | AX11: 21574 | AZ11: 1.11486 | BB11: =ROUND(SUM(BB4:BB10),5) -> 149456 | BD11: =ROUND(SUM(BD4:BD10),5) -> 182538 | BF11: -33082 | BH11: 0.81877 | BJ11: =ROUND(SUM(BJ4:BJ10),5) -> 217755 | BL11: =ROUND(SUM(BL4:BL10),5) -> 173946 | BN11: 43809 | BP11: 1.25185 | BR11: =ROUND(SUM(BR4:BR10),5) -> 212221 | BT11: =ROUND(SUM(BT4:BT10),5) -> 172420 | BV11: 39801 | BX11: 1.23084 | BZ11: 1529433 | CB11: 1411204 | CD11: 118229 | CF11: 1.08378
C12: Gross Profit | F12: =F11 -> 121965 | H12: =H11 -> 91059 | J12: 30906 | L12: 1.33941 | N12: =N11 -> 120559 | P12: =P11 -> 107149 | R12: 13410 | T12: 1.12515 | V12: =V11 -> 139917 | X12: =X11 -> 149098 | Z12: -9181 | AB12: 0.93842 | AD12: =AD11 -> 190289 | AF12: =AF11 -> 174826 | AH12: 15463 | AJ12: 1.08845 | AL12: =AL11 -> 167875 | AN12: =AN11 -> 172346 | AP12: -4471 | AR12: 0.97406 | AT12: =AT11 -> 209396 | AV12: =AV11 -> 187822 | AX12: 21574 | AZ12: 1.11486 | BB12: =BB11 -> 149456 | BD12: =BD11 -> 182538 | BF12: -33082 | BH12: 0.81877 | BJ12: =BJ11 -> 217755 | BL12: =BL11 -> 173946 | BN12: 43809 | BP12: 1.25185 | BR12: =BR11 -> 212221 | BT12: =BT11 -> 172420 | BV12: 39801 | BX12: 1.23084 | BZ12: 1529433 | CB12: 1411204 | CD12: 118229 | CF12: 1.08378
D13: Expense
E14: 55100 · Food Purchased | F14: 16506 | H14: 17020 | J14: =ROUND((F14-H14),5) -> -514 | L14: =ROUND(IF(H14=0, IF(F14=0, 0, 1), F14/H14),5) -> 0.9698 | N14: 18293 | P14: 20000 | R14: =ROUND((N14-P14),5) -> -1707 | T14: =ROUND(IF(P14=0, IF(N14=0, 0, 1), N14/P14),5) -> 0.91465 | V14: 21244 | X14: 22000 | Z14: =ROUND((V14-X14),5) -> -756 | AB14: =ROUND(IF(X14=0, IF(V14=0, 0, 1), V14/X14),5) -> 0.96564 | AD14: 27673 | AF14: 27000 | AH14: =ROUND((AD14-AF14),5) -> 673 | AJ14: =ROUND(IF(AF14=0, IF(AD14=0, 0, 1), AD14/AF14),5) -> 1.02493 | AL14: 27231 | AN14: 27000 | AP14: =ROUND((AL14-AN14),5) -> 231 | AR14: =ROUND(IF(AN14=0, IF(AL14=0, 0, 1), AL14/AN14),5) -> 1.00856 | AT14: 26056 | AV14: 28000 | AX14: =ROUND((AT14-AV14),5) -> -1944 | AZ14: =ROUND(IF(AV14=0, IF(AT14=0, 0, 1), AT14/AV14),5) -> 0.93057 | BB14: 22729 | BD14: 32000 | BF14: =ROUND((BB14-BD14),5) -> -9271 | BH14: =ROUND(IF(BD14=0, IF(BB14=0, 0, 1), BB14/BD14),5) -> 0.71028 | BJ14: 27867 | BL14: 30000 | BN14: =ROUND((BJ14-BL14),5) -> -2133 | BP14: =ROUND(IF(BL14=0, IF(BJ14=0, 0, 1), BJ14/BL14),5) -> 0.9289 | BR14: 21675 | BT14: 25000 | BV14: =ROUND((BR14-BT14),5) -> -3325 | BX14: =ROUND(IF(BT14=0, IF(BR14=0, 0, 1), BR14/BT14),5) -> 0.867 | BZ14: =ROUND(F14+N14+V14+AD14+AL14+AT14+BB14+BJ14+BR14,5) -> 209274 | CB14: =ROUND(H14+P14+X14+AF14+AN14+AV14+BD14+BL14+BT14,5) -> 228020 | CD14: =ROUND((BZ14-CB14),5) -> -18746 | CF14: =ROUND(IF(CB14=0, IF(BZ14=0, 0, 1), BZ14/CB14),5) -> 0.91779
E15: 55200 · Beverages | F15: 12326 | H15: 4051 | J15: 8275 | L15: 3.04271 | N15: 5382 | P15: 7805 | R15: -2423 | T15: 0.68956 | V15: 10200 | X15: 12716 | Z15: -2516 | AB15: 0.80214 | AD15: 22493 | AF15: 16643 | AH15: 5850 | AJ15: 1.3515 | AL15: 17719 | AN15: 11828 | AP15: 5891 | AR15: 1.49806 | AT15: 15121 | AV15: 15100 | AX15: 21 | AZ15: 1.00139 | BB15: 8477 | BD15: 17267 | BF15: -8790 | BH15: 0.49094 | BJ15: 29348 | BL15: 18817 | BN15: 10531 | BP15: 1.55965 | BR15: 16895 | BT15: 14700 | BV15: 2195 | BX15: 1.14932 | BZ15: 137961 | CB15: 118927 | CD15: 19034 | CF15: 1.16005
E16: 55300 · Kitchen Employee Expense | F16: 31159 | H16: 30332 | J16: 827 | L16: 1.02726 | N16: 31421 | P16: 30332 | R16: 1089 | T16: 1.0359 | V16: 29671 | X16: 30332 | Z16: -661 | AB16: 0.97821 | AD16: 31990 | AF16: 30332 | AH16: 1658 | AJ16: 1.05466 | AL16: 37353 | AN16: 30332 | AP16: 7021 | AR16: 1.23147 | AT16: 31704 | AV16: 30332 | AX16: 1372 | AZ16: 1.04523 | BB16: 35185 | BD16: 30332 | BF16: 4853 | BH16: 1.16 | BJ16: 35403 | BL16: 30332 | BN16: 5071 | BP16: 1.16718 | BR16: 35080 | BT16: 30332 | BV16: 4748 | BX16: 1.15653 | BZ16: 298966 | CB16: 272988 | CD16: 25978 | CF16: 1.09516
E17: 55400 · Front of House Employee Expense | F17: 24021 | H17: 30425 | J17: -6404 | L17: 0.78952 | N17: 23094 | P17: 30425 | R17: -7331 | T17: 0.75905 | V17: 24415 | X17: 30425 | Z17: -6010 | AB17: 0.80247 | AD17: 30535 | AF17: 30425 | AH17: 110 | AJ17: 1.00362 | AL17: 41005 | AN17: 30425 | AP17: 10580 | AR17: 1.34774 | AT17: 30573 | AV17: 30425 | AX17: 148 | AZ17: 1.00486 | BB17: 28697 | BD17: 30425 | BF17: -1728 | BH17: 0.9432 | BJ17: 31486 | BL17: 30425 | BN17: 1061 | BP17: 1.03487 | BR17: 33461 | BT17: 30425 | BV17: 3036 | BX17: 1.09979 | BZ17: 267287 | CB17: 273825 | CD17: -6538 | CF17: 0.97612
E18: 55500 · Kitchen Supplies | F18: 1058 | H18: 1098 | J18: -40 | L18: 0.96357 | N18: 464 | P18: 1098 | R18: -634 | T18: 0.42259 | V18: 1431 | X18: 1098 | Z18: 333 | AB18: 1.30328 | AD18: 708 | AF18: 1098 | AH18: -390 | AJ18: 0.64481 | AL18: 1035 | AN18: 1098 | AP18: -63 | AR18: 0.94262 | AT18: 1067 | AV18: 1098 | AX18: -31 | AZ18: 0.97177 | BB18: 445 | BD18: 1098 | BF18: -653 | BH18: 0.40528 | BJ18: 881 | BL18: 1098 | BN18: -217 | BP18: 0.80237 | BR18: 698 | BT18: 1098 | BV18: -400 | BX18: 0.6357 | BZ18: 7787 | CB18: 9882 | CD18: -2095 | CF18: 0.788
E19: 55800 · Entertainment | F19: 654 | H19: 5426 | J19: -4772 | L19: 0.12053 | N19: 4854 | P19: 5426 | R19: -572 | T19: 0.89458 | V19: 2054 | X19: 5426 | Z19: -3372 | AB19: 0.37855 | AD19: 3454 | AF19: 5426 | AH19: -1972 | AJ19: 0.63656 | AL19: 7504 | AN19: 5426 | AP19: 2078 | AR19: 1.38297 | AT19: 10504 | AV19: 5426 | AX19: 5078 | AZ19: 1.93586 | BB19: 9254 | BD19: 5426 | BF19: 3828 | BH19: 1.70549 | BJ19: 4519 | BL19: 5426 | BN19: -907 | BP19: 0.83284 | BR19: 11054 | BT19: 5426 | BV19: 5628 | BX19: 2.03723 | BZ19: 53851 | CB19: 48834 | CD19: 5017 | CF19: 1.10274
E20: 60000 · General & Admin Employee Exp | F20: 24908 | H20: 26572 | J20: -1664 | L20: 0.93738 | N20: 24328 | P20: 26572 | R20: -2244 | T20: 0.91555 | V20: 24203 | X20: 26572 | Z20: -2369 | AB20: 0.91085 | AD20: 24203 | AF20: 26572 | AH20: -2369 | AJ20: 0.91085 | AL20: 25727 | AN20: 26572 | AP20: -845 | AR20: 0.9682 | AT20: 24203 | AV20: 26572 | AX20: -2369 | AZ20: 0.91085 | BB20: 24203 | BD20: 26572 | BF20: -2369 | BH20: 0.91085 | BJ20: 24589 | BL20: 26572 | BN20: -1983 | BP20: 0.92537 | BR20: 26626 | BT20: 26572 | BV20: 54 | BX20: 1.00203 | BZ20: 222990 | CB20: 239148 | CD20: -16158 | CF20: 0.93244
E21: 60700 · Advertising & Promotional | F21: 887 | H21: 2065 | J21: -1178 | L21: 0.42954 | N21: 1139 | P21: 2065 | R21: -926 | T21: 0.55157 | V21: 905 | X21: 2065 | Z21: -1160 | AB21: 0.43826 | AD21: 607 | AF21: 2065 | AH21: -1458 | AJ21: 0.29395 | AL21: 3772 | AN21: 2065 | AP21: 1707 | AR21: 1.82663 | AT21: 3017 | AV21: 2065 | AX21: 952 | AZ21: 1.46102 | BB21: 5057 | BD21: 2065 | BF21: 2992 | BH21: 2.44891 | BJ21: 1207 | BL21: 2065 | BN21: -858 | BP21: 0.5845 | BR21: 3107 | BT21: 2065 | BV21: 1042 | BX21: 1.5046 | BZ21: 19698 | CB21: 18585 | CD21: 1113 | CF21: 1.05989
E22: 62020 · Dues & Subscriptions | F22: 338 | H22: 85 | J22: 253 | L22: 3.97647 | N22: 0 | P22: 85 | R22: -85 | T22: 0 | V22: 0 | X22: 85 | Z22: -85 | AB22: 0 | AD22: 401 | AF22: 85 | AH22: 316 | AJ22: 4.71765 | AL22: 0 | AN22: 85 | AP22: -85 | AR22: 0 | AT22: 0 | AV22: 85 | AX22: -85 | AZ22: 0 | BB22: 401 | BD22: 85 | BF22: 316 | BH22: 4.71765 | BJ22: 0 | BL22: 85 | BN22: -85 | BP22: 0 | BR22: 0 | BT22: 85 | BV22: -85 | BX22: 0 | BZ22: 1140 | CB22: 765 | CD22: 375 | CF22: 1.4902
E23: 62030 · Equipment Rental | F23: 333 | H23: 2101 | J23: -1768 | L23: 0.1585 | N23: 458 | P23: 2101 | R23: -1643 | T23: 0.21799 | V23: 391 | X23: 2101 | Z23: -1710 | AB23: 0.1861 | AD23: 4932 | AF23: 2101 | AH23: 2831 | AJ23: 2.34745 | AL23: 2203 | AN23: 2101 | AP23: 102 | AR23: 1.04855 | AT23: 9888 | AV23: 2101 | AX23: 7787 | AZ23: 4.70633 | BB23: 3400 | BD23: 2101 | BF23: 1299 | BH23: 1.61828 | BJ23: 2849 | BL23: 2101 | BN23: 748 | BP23: 1.35602 | BR23: 3899 | BT23: 2101 | BV23: 1798 | BX23: 1.85578 | BZ23: 28353 | CB23: 18909 | CD23: 9444 | CF23: 1.49944
E24: 62040 · Repairs & Maintenance | F24: 5558 | H24: 6782 | J24: -1224 | L24: 0.81952 | N24: 8028 | P24: 6782 | R24: 1246 | T24: 1.18372 | V24: 2888 | X24: 6782 | Z24: -3894 | AB24: 0.42583 | AD24: 8601 | AF24: 6782 | AH24: 1819 | AJ24: 1.26821 | AL24: 5057 | AN24: 6782 | AP24: -1725 | AR24: 0.74565 | AT24: 5211 | AV24: 6782 | AX24: -1571 | AZ24: 0.76836 | BB24: 5483 | BD24: 6782 | BF24: -1299 | BH24: 0.80846 | BJ24: 5367 | BL24: 6782 | BN24: -1415 | BP24: 0.79136 | BR24: 11007 | BT24: 6782 | BV24: 4225 | BX24: 1.62297 | BZ24: 57200 | CB24: 61038 | CD24: -3838 | CF24: 0.93712
E25: 62100 · Auto related | F25: 51 | H25: 64 | J25: -13 | L25: 0.79688 | N25: 114 | P25: 64 | R25: 50 | T25: 1.78125 | V25: 0 | X25: 64 | Z25: -64 | AB25: 0 | AD25: 170 | AF25: 64 | AH25: 106 | AJ25: 2.65625 | AL25: 75 | AN25: 64 | AP25: 11 | AR25: 1.17188 | AT25: 80 | AV25: 64 | AX25: 16 | AZ25: 1.25 | BB25: 116 | BD25: 64 | BF25: 52 | BH25: 1.8125 | BJ25: 63 | BL25: 64 | BN25: -1 | BP25: 0.98438 | BR25: 72 | BT25: 64 | BV25: 8 | BX25: 1.125 | BZ25: 741 | CB25: 576 | CD25: 165 | CF25: 1.28646
E26: 62200 · Meals and Entertainment | F26: 3278 | H26: 60 | J26: 3218 | L26: 54.63333 | N26: 0 | P26: 60 | R26: -60 | T26: 0 | V26: 157 | X26: 60 | Z26: 97 | AB26: 2.61667 | AD26: 0 | AF26: 60 | AH26: -60 | AJ26: 0 | AL26: 0 | AN26: 60 | AP26: -60 | AR26: 0 | AT26: 0 | AV26: 60 | AX26: -60 | AZ26: 0 | BB26: 0 | BD26: 60 | BF26: -60 | BH26: 0 | BJ26: 0 | BL26: 60 | BN26: -60 | BP26: 0 | BR26: 272 | BT26: 60 | BV26: 212 | BX26: 4.53333 | BZ26: 3707 | CB26: 540 | CD26: 3167 | CF26: 6.86481
E27: 62300 · Postage | F27: 0 | H27: 211 | J27: -211 | L27: 0 | N27: 676 | P27: 211 | R27: 465 | T27: 3.20379 | V27: 31 | X27: 211 | Z27: -180 | AB27: 0.14692 | AD27: 630 | AF27: 211 | AH27: 419 | AJ27: 2.98578 | AL27: 0 | AN27: 211 | AP27: -211 | AR27: 0 | AT27: 630 | AV27: 211 | AX27: 419 | AZ27: 2.98578 | BB27: 0 | BD27: 211 | BF27: -211 | BH27: 0 | BJ27: 0 | BL27: 211 | BN27: -211 | BP27: 0 | BR27: 0 | BT27: 211 | BV27: -211 | BX27: 0 | BZ27: 1967 | CB27: 1899 | CD27: 68 | CF27: 1.03581
E28: 62400 · Printing | F28: 1101 | H28: 160 | J28: 941 | L28: 6.88125 | N28: 0 | P28: 160 | R28: -160 | T28: 0 | V28: 378 | X28: 160 | Z28: 218 | AB28: 2.3625 | AD28: 0 | AF28: 160 | AH28: -160 | AJ28: 0 | AL28: 0 | AN28: 160 | AP28: -160 | AR28: 0 | AT28: 0 | AV28: 160 | AX28: -160 | AZ28: 0 | BB28: 0 | BD28: 160 | BF28: -160 | BH28: 0 | BJ28: 658 | BL28: 160 | BN28: 498 | BP28: 4.1125 | BR28: 0 | BT28: 160 | BV28: -160 | BX28: 0 | BZ28: 2137 | CB28: 1440 | CD28: 697 | CF28: 1.48403
E29: 62500 · Training | F29: 100 | H29: 325 | J29: -225 | L29: 0.30769 | N29: 850 | P29: 325 | R29: 525 | T29: 2.61538 | V29: 262 | X29: 325 | Z29: -63 | AB29: 0.80615 | AD29: 0 | AF29: 325 | AH29: -325 | AJ29: 0 | AL29: 0 | AN29: 325 | AP29: -325 | AR29: 0 | AT29: 0 | AV29: 325 | AX29: -325 | AZ29: 0 | BB29: 0 | BD29: 325 | BF29: -325 | BH29: 0 | BJ29: 0 | BL29: 325 | BN29: -325 | BP29: 0 | BR29: 0 | BT29: 325 | BV29: -325 | BX29: 0 | BZ29: 1212 | CB29: 2925 | CD29: -1713 | CF29: 0.41436
E30: 63000 · Insurance | F30: 2782 | H30: 3923 | J30: -1141 | L30: 0.70915 | N30: 1417 | P30: 3923 | R30: -2506 | T30: 0.3612 | V30: -926 | X30: 3923 | Z30: -4849 | AB30: -0.23604 | AD30: 2786 | AF30: 3923 | AH30: -1137 | AJ30: 0.71017 | AL30: 2950 | AN30: 3923 | AP30: -973 | AR30: 0.75198 | AT30: 2806 | AV30: 3923 | AX30: -1117 | AZ30: 0.71527 | BB30: 2786 | BD30: 3923 | BF30: -1137 | BH30: 0.71017 | BJ30: 2786 | BL30: 3923 | BN30: -1137 | BP30: 0.71017 | BR30: 2786 | BT30: 3923 | BV30: -1137 | BX30: 0.71017 | BZ30: 20173 | CB30: 35307 | CD30: -15134 | CF30: 0.57136
E31: 64000 · Supplies and Related | F31: 5637 | H31: 3487 | J31: 2150 | L31: 1.61658 | N31: 4729 | P31: 3487 | R31: 1242 | T31: 1.35618 | V31: 2052 | X31: 3487 | Z31: -1435 | AB31: 0.58847 | AD31: 2219 | AF31: 3487 | AH31: -1268 | AJ31: 0.63636 | AL31: 4883 | AN31: 3487 | AP31: 1396 | AR31: 1.40034 | AT31: 2851 | AV31: 3487 | AX31: -636 | AZ31: 0.81761 | BB31: 3770 | BD31: 3487 | BF31: 283 | BH31: 1.08116 | BJ31: 3110 | BL31: 3487 | BN31: -377 | BP31: 0.89188 | BR31: 2763 | BT31: 3487 | BV31: -724 | BX31: 0.79237 | BZ31: 32014 | CB31: 31383 | CD31: 631 | CF31: 1.02011
E32: 65000 · Professional Services | F32: 4557 | H32: 3015 | J32: 1542 | L32: 1.51144 | N32: 4038 | P32: 3015 | R32: 1023 | T32: 1.3393 | V32: 3247 | X32: 3015 | Z32: 232 | AB32: 1.07695 | AD32: 2706 | AF32: 3015 | AH32: -309 | AJ32: 0.89751 | AL32: 3011 | AN32: 3015 | AP32: -4 | AR32: 0.99867 | AT32: 3699 | AV32: 3015 | AX32: 684 | AZ32: 1.22687 | BB32: 2832 | BD32: 3015 | BF32: -183 | BH32: 0.9393 | BJ32: 2596 | BL32: 3015 | BN32: -419 | BP32: 0.86103 | BR32: 2780 | BT32: 3015 | BV32: -235 | BX32: 0.92206 | BZ32: 29466 | CB32: 27135 | CD32: 2331 | CF32: 1.0859
E33: 65050 · Other Outside Services | F33: 322 | H33: 2579 | J33: -2257 | L33: 0.12485 | N33: 971 | P33: 2579 | R33: -1608 | T33: 0.3765 | V33: 1214 | X33: 2579 | Z33: -1365 | AB33: 0.47073 | AD33: 1401 | AF33: 2579 | AH33: -1178 | AJ33: 0.54323 | AL33: 1428 | AN33: 2579 | AP33: -1151 | AR33: 0.5537 | AT33: 1680 | AV33: 2579 | AX33: -899 | AZ33: 0.65142 | BB33: 1401 | BD33: 2579 | BF33: -1178 | BH33: 0.54323 | BJ33: 2077 | BL33: 2579 | BN33: -502 | BP33: 0.80535 | BR33: 1661 | BT33: 2579 | BV33: -918 | BX33: 0.64405 | BZ33: 12155 | CB33: 23211 | CD33: -11056 | CF33: 0.52367
E34: 66000 · Bank and Other Service Charges | F34: 462 | H34: 290 | J34: 172 | L34: 1.5931 | N34: 252 | P34: 290 | R34: -38 | T34: 0.86897 | V34: 258 | X34: 290 | Z34: -32 | AB34: 0.88966 | AD34: 266 | AF34: 290 | AH34: -24 | AJ34: 0.91724 | AL34: 285 | AN34: 290 | AP34: -5 | AR34: 0.98276 | AT34: 293 | AV34: 290 | AX34: 3 | AZ34: 1.01034 | BB34: 277 | BD34: 290 | BF34: -13 | BH34: 0.95517 | BJ34: 282 | BL34: 290 | BN34: -8 | BP34: 0.97241 | BR34: 282 | BT34: 290 | BV34: -8 | BX34: 0.97241 | BZ34: 2657 | CB34: 2610 | CD34: 47 | CF34: 1.01801
E35: 67000 · Taxes and Fees | F35: 0 | H35: 0 | J35: 0 | L35: 0 | N35: 7112 | P35: 7000 | R35: 112 | T35: 1.016 | V35: 0 | X35: 0 | Z35: 0 | AB35: 0 | AD35: 0 | AF35: 0 | AH35: 0 | AJ35: 0 | AL35: 654 | AN35: 500 | AP35: 154 | AR35: 1.308 | AT35: 2095 | AV35: 1000 | AX35: 1095 | AZ35: 2.095 | BB35: 222 | BD35: 0 | BF35: 222 | BH35: 1 | BJ35: 0 | BL35: 0 | BN35: 0 | BP35: 0 | BR35: 0 | BT35: 0 | BV35: 0 | BX35: 0 | BZ35: 10083 | CB35: 8500 | CD35: 1583 | CF35: 1.18624
E36: 68000 · Utilities | F36: 5149 | H36: 5801 | J36: -652 | L36: 0.88761 | N36: 5827 | P36: 5801 | R36: 26 | T36: 1.00448 | V36: 5066 | X36: 5801 | Z36: -735 | AB36: 0.8733 | AD36: 4311 | AF36: 5801 | AH36: -1490 | AJ36: 0.74315 | AL36: 5686 | AN36: 5801 | AP36: -115 | AR36: 0.98018 | AT36: 8059 | AV36: 5801 | AX36: 2258 | AZ36: 1.38924 | BB36: 8299 | BD36: 5801 | BF36: 2498 | BH36: 1.43062 | BJ36: 8325 | BL36: 5801 | BN36: 2524 | BP36: 1.4351 | BR36: 6920 | BT36: 5801 | BV36: 1119 | BX36: 1.1929 | BZ36: 57642 | CB36: 52209 | CD36: 5433 | CF36: 1.10406
D37: Total Expense | F37: =ROUND(SUM(F13:F36),5) -> 141187 | H37: =ROUND(SUM(H13:H36),5) -> 145872 | J37: -4685 | L37: 0.96788 | N37: =ROUND(SUM(N13:N36),5) -> 143447 | P37: =ROUND(SUM(P13:P36),5) -> 159606 | R37: -16159 | T37: 0.89876 | V37: =ROUND(SUM(V13:V36),5) -> 129141 | X37: =ROUND(SUM(X13:X36),5) -> 159517 | Z37: -30376 | AB37: 0.80958 | AD37: =ROUND(SUM(AD13:AD36),5) -> 170086 | AF37: =ROUND(SUM(AF13:AF36),5) -> 168444 | AH37: 1642 | AJ37: 1.00975 | AL37: =ROUND(SUM(AL13:AL36),5) -> 187578 | AN37: =ROUND(SUM(AN13:AN36),5) -> 164129 | AP37: 23449 | AR37: 1.14287 | AT37: =ROUND(SUM(AT13:AT36),5) -> 179537 | AV37: =ROUND(SUM(AV13:AV36),5) -> 168901 | AX37: 10636 | AZ37: 1.06297 | BB37: =ROUND(SUM(BB13:BB36),5) -> 163034 | BD37: =ROUND(SUM(BD13:BD36),5) -> 174068 | BF37: -11034 | BH37: 0.93661 | BJ37: =ROUND(SUM(BJ13:BJ36),5) -> 183413 | BL37: =ROUND(SUM(BL13:BL36),5) -> 173618 | BN37: 9795 | BP37: 1.05642 | BR37: =ROUND(SUM(BR13:BR36),5) -> 181038 | BT37: =ROUND(SUM(BT13:BT36),5) -> 164501 | BV37: 16537 | BX37: 1.10053 | BZ37: 1478461 | CB37: 1478656 | CD37: -195 | CF37: 0.99987
B38: Net Ordinary Income | F38: =ROUND(F3+F12-F37,5) -> -19222 | H38: =ROUND(H3+H12-H37,5) -> -54813 | J38: 35591 | L38: 0.35068 | N38: =ROUND(N3+N12-N37,5) -> -22888 | P38: =ROUND(P3+P12-P37,5) -> -52457 | R38: 29569 | T38: 0.43632 | V38: =ROUND(V3+V12-V37,5) -> 10776 | X38: =ROUND(X3+X12-X37,5) -> -10419 | Z38: 21195 | AB38: -1.03426 | AD38: =ROUND(AD3+AD12-AD37,5) -> 20203 | AF38: =ROUND(AF3+AF12-AF37,5) -> 6382 | AH38: 13821 | AJ38: 3.16562 | AL38: =ROUND(AL3+AL12-AL37,5) -> -19703 | AN38: =ROUND(AN3+AN12-AN37,5) -> 8217 | AP38: -27920 | AR38: -2.39783 | AT38: =ROUND(AT3+AT12-AT37,5) -> 29859 | AV38: =ROUND(AV3+AV12-AV37,5) -> 18921 | AX38: 10938 | AZ38: 1.57809 | BB38: =ROUND(BB3+BB12-BB37,5) -> -13578 | BD38: =ROUND(BD3+BD12-BD37,5) -> 8470 | BF38: -22048 | BH38: -1.60307 | BJ38: =ROUND(BJ3+BJ12-BJ37,5) -> 34342 | BL38: =ROUND(BL3+BL12-BL37,5) -> 328 | BN38: 34014 | BP38: 104.70122 | BR38: =ROUND(BR3+BR12-BR37,5) -> 31183 | BT38: =ROUND(BT3+BT12-BT37,5) -> 7919 | BV38: 23264 | BX38: 3.93774 | BZ38: 50972 | CB38: -67452 | CD38: 118424 | CF38: -0.75568
C39: Other Income
D40: 70001 · Interest & Dividend Income | F40: 1 | H40: 1 | J40: =ROUND((F40-H40),5) -> 0 | L40: =ROUND(IF(H40=0, IF(F40=0, 0, 1), F40/H40),5) -> 1 | N40: 0 | P40: 1 | R40: =ROUND((N40-P40),5) -> -1 | T40: =ROUND(IF(P40=0, IF(N40=0, 0, 1), N40/P40),5) -> 0 | V40: 0 | X40: 1 | Z40: =ROUND((V40-X40),5) -> -1 | AB40: =ROUND(IF(X40=0, IF(V40=0, 0, 1), V40/X40),5) -> 0 | AD40: 0 | AF40: 1 | AH40: =ROUND((AD40-AF40),5) -> -1 | AJ40: =ROUND(IF(AF40=0, IF(AD40=0, 0, 1), AD40/AF40),5) -> 0 | AL40: 0 | AN40: 1 | AP40: =ROUND((AL40-AN40),5) -> -1 | AR40: =ROUND(IF(AN40=0, IF(AL40=0, 0, 1), AL40/AN40),5) -> 0 | AT40: 1 | AV40: 1 | AX40: =ROUND((AT40-AV40),5) -> 0 | AZ40: =ROUND(IF(AV40=0, IF(AT40=0, 0, 1), AT40/AV40),5) -> 1 | BB40: 1 | BD40: 1 | BF40: =ROUND((BB40-BD40),5) -> 0 | BH40: =ROUND(IF(BD40=0, IF(BB40=0, 0, 1), BB40/BD40),5) -> 1 | BJ40: 0 | BL40: 1 | BN40: =ROUND((BJ40-BL40),5) -> -1 | BP40: =ROUND(IF(BL40=0, IF(BJ40=0, 0, 1), BJ40/BL40),5) -> 0 | BR40: 0 | BT40: 1 | BV40: =ROUND((BR40-BT40),5) -> -1 | BX40: =ROUND(IF(BT40=0, IF(BR40=0, 0, 1), BR40/BT40),5) -> 0 | BZ40: =ROUND(F40+N40+V40+AD40+AL40+AT40+BB40+BJ40+BR40,5) -> 3 | CB40: =ROUND(H40+P40+X40+AF40+AN40+AV40+BD40+BL40+BT40,5) -> 9 | CD40: =ROUND((BZ40-CB40),5) -> -6 | CF40: =ROUND(IF(CB40=0, IF(BZ40=0, 0, 1), BZ40/CB40),5) -> 0.33333
D41: 70011 · Assessment Fee Income | F41: 125 | H41: 125 | J41: =ROUND((F41-H41),5) -> 0 | L41: =ROUND(IF(H41=0, IF(F41=0, 0, 1), F41/H41),5) -> 1 | N41: 125 | P41: 125 | R41: =ROUND((N41-P41),5) -> 0 | T41: =ROUND(IF(P41=0, IF(N41=0, 0, 1), N41/P41),5) -> 1 | V41: 125 | X41: 125 | Z41: =ROUND((V41-X41),5) -> 0 | AB41: =ROUND(IF(X41=0, IF(V41=0, 0, 1), V41/X41),5) -> 1 | AD41: 125 | AF41: 125 | AH41: =ROUND((AD41-AF41),5) -> 0 | AJ41: =ROUND(IF(AF41=0, IF(AD41=0, 0, 1), AD41/AF41),5) -> 1 | AL41: 125 | AN41: 125 | AP41: =ROUND((AL41-AN41),5) -> 0 | AR41: =ROUND(IF(AN41=0, IF(AL41=0, 0, 1), AL41/AN41),5) -> 1 | AT41: 125 | AV41: 125 | AX41: =ROUND((AT41-AV41),5) -> 0 | AZ41: =ROUND(IF(AV41=0, IF(AT41=0, 0, 1), AT41/AV41),5) -> 1 | BB41: 100 | BD41: 125 | BF41: =ROUND((BB41-BD41),5) -> -25 | BH41: =ROUND(IF(BD41=0, IF(BB41=0, 0, 1), BB41/BD41),5) -> 0.8 | BJ41: 67600 | BL41: 68525 | BN41: =ROUND((BJ41-BL41),5) -> -925 | BP41: =ROUND(IF(BL41=0, IF(BJ41=0, 0, 1), BJ41/BL41),5) -> 0.9865 | BR41: 100 | BT41: 125 | BV41: =ROUND((BR41-BT41),5) -> -25 | BX41: =ROUND(IF(BT41=0, IF(BR41=0, 0, 1), BR41/BT41),5) -> 0.8 | BZ41: =ROUND(F41+N41+V41+AD41+AL41+AT41+BB41+BJ41+BR41,5) -> 68550 | CB41: =ROUND(H41+P41+X41+AF41+AN41+AV41+BD41+BL41+BT41,5) -> 69525 | CD41: =ROUND((BZ41-CB41),5) -> -975 | CF41: =ROUND(IF(CB41=0, IF(BZ41=0, 0, 1), BZ41/CB41),5) -> 0.98598
D42: 70012 · Other Member Contributions | F42: 0 | H42: 0 | J42: =ROUND((F42-H42),5) -> 0 | L42: =ROUND(IF(H42=0, IF(F42=0, 0, 1), F42/H42),5) -> 0 | N42: 850 | P42: 0 | R42: =ROUND((N42-P42),5) -> 850 | T42: =ROUND(IF(P42=0, IF(N42=0, 0, 1), N42/P42),5) -> 1 | V42: 1200 | X42: 0 | Z42: =ROUND((V42-X42),5) -> 1200 | AB42: =ROUND(IF(X42=0, IF(V42=0, 0, 1), V42/X42),5) -> 1 | AD42: -85 | AF42: 0 | AH42: =ROUND((AD42-AF42),5) -> -85 | AJ42: =ROUND(IF(AF42=0, IF(AD42=0, 0, 1), AD42/AF42),5) -> 1 | AL42: 125475 | AN42: 81008 | AP42: =ROUND((AL42-AN42),5) -> 44467 | AR42: =ROUND(IF(AN42=0, IF(AL42=0, 0, 1), AL42/AN42),5) -> 1.54892 | AT42: 4450 | AV42: 0 | AX42: =ROUND((AT42-AV42),5) -> 4450 | AZ42: =ROUND(IF(AV42=0, IF(AT42=0, 0, 1), AT42/AV42),5) -> 1 | BB42: 132 | BD42: 0 | BF42: =ROUND((BB42-BD42),5) -> 132 | BH42: =ROUND(IF(BD42=0, IF(BB42=0, 0, 1), BB42/BD42),5) -> 1 | BJ42: 0 | BL42: 0 | BN42: =ROUND((BJ42-BL42),5) -> 0 | BP42: =ROUND(IF(BL42=0, IF(BJ42=0, 0, 1), BJ42/BL42),5) -> 0 | BR42: 3200 | BT42: 0 | BV42: =ROUND((BR42-BT42),5) -> 3200 | BX42: =ROUND(IF(BT42=0, IF(BR42=0, 0, 1), BR42/BT42),5) -> 1 | BZ42: =ROUND(F42+N42+V42+AD42+AL42+AT42+BB42+BJ42+BR42,5) -> 135222 | CB42: =ROUND(H42+P42+X42+AF42+AN42+AV42+BD42+BL42+BT42,5) -> 81008 | CD42: =ROUND((BZ42-CB42),5) -> 54214 | CF42: =ROUND(IF(CB42=0, IF(BZ42=0, 0, 1), BZ42/CB42),5) -> 1.66924
B43: Net Other Income | F43: =ROUND(#REF!+#REF!-#REF!,5) ->  | H43: =ROUND(#REF!+#REF!-#REF!,5) ->  | J43: =ROUND((F43-H43),5) ->  | L43: =ROUND(IF(H43=0, IF(F43=0, 0, 1), F43/H43),5) ->  | N43: =ROUND(#REF!+#REF!-#REF!,5) ->  | P43: =ROUND(#REF!+#REF!-#REF!,5) ->  | R43: =ROUND((N43-P43),5) ->  | T43: =ROUND(IF(P43=0, IF(N43=0, 0, 1), N43/P43),5) ->  | V43: =ROUND(#REF!+#REF!-#REF!,5) ->  | X43: =ROUND(#REF!+#REF!-#REF!,5) ->  | Z43: =ROUND((V43-X43),5) ->  | AB43: =ROUND(IF(X43=0, IF(V43=0, 0, 1), V43/X43),5) ->  | AD43: =ROUND(#REF!+#REF!-#REF!,5) ->  | AF43: =ROUND(#REF!+#REF!-#REF!,5) ->  | AH43: =ROUND((AD43-AF43),5) ->  | AJ43: =ROUND(IF(AF43=0, IF(AD43=0, 0, 1), AD43/AF43),5) ->  | AL43: =ROUND(#REF!+#REF!-#REF!,5) ->  | AN43: =ROUND(#REF!+#REF!-#REF!,5) ->  | AP43: =ROUND((AL43-AN43),5) ->  | AR43: =ROUND(IF(AN43=0, IF(AL43=0, 0, 1), AL43/AN43),5) ->  | AT43: =ROUND(#REF!+#REF!-#REF!,5) ->  | AV43: =ROUND(#REF!+#REF!-#REF!,5) ->  | AX43: =ROUND((AT43-AV43),5) ->  | AZ43: =ROUND(IF(AV43=0, IF(AT43=0, 0, 1), AT43/AV43),5) ->  | BB43: =ROUND(#REF!+#REF!-#REF!,5) ->  | BD43: =ROUND(#REF!+#REF!-#REF!,5) ->  | BF43: =ROUND((BB43-BD43),5) ->  | BH43: =ROUND(IF(BD43=0, IF(BB43=0, 0, 1), BB43/BD43),5) ->  | BJ43: =SUM(BJ40:BJ42) -> 67600 | BL43: =SUM(BL40:BL42) -> 68526 | BN43: =ROUND((BJ43-BL43),5) -> -926 | BP43: =ROUND(IF(BL43=0, IF(BJ43=0, 0, 1), BJ43/BL43),5) -> 0.98649 | BR43: =SUM(BR40:BR42) -> 3300 | BT43: =SUM(BT40:BT42) -> 126 | BV43: =ROUND((BR43-BT43),5) -> 3174 | BX43: =ROUND(IF(BT43=0, IF(BR43=0, 0, 1), BR43/BT43),5) -> 26.19048 | BZ43: =SUM(BZ40:BZ42) -> 203775 | CB43: =SUM(CB40:CB42) -> 150542 | CD43: =ROUND((BZ43-CB43),5) -> 53233 | CF43: =ROUND(IF(CB43=0, IF(BZ43=0, 0, 1), BZ43/CB43),5) -> 1.35361
A44: Net Income | F44: =ROUND(F38+F43,5) ->  | H44: =ROUND(H38+H43,5) ->  | J44: =ROUND((F44-H44),5) ->  | L44: =ROUND(IF(H44=0, IF(F44=0, 0, 1), F44/H44),5) ->  | N44: =ROUND(N38+N43,5) ->  | P44: =ROUND(P38+P43,5) ->  | R44: =ROUND((N44-P44),5) ->  | T44: =ROUND(IF(P44=0, IF(N44=0, 0, 1), N44/P44),5) ->  | V44: =ROUND(V38+V43,5) ->  | X44: =ROUND(X38+X43,5) ->  | Z44: =ROUND((V44-X44),5) ->  | AB44: =ROUND(IF(X44=0, IF(V44=0, 0, 1), V44/X44),5) ->  | AD44: =ROUND(AD38+AD43,5) ->  | AF44: =ROUND(AF38+AF43,5) ->  | AH44: =ROUND((AD44-AF44),5) ->  | AJ44: =ROUND(IF(AF44=0, IF(AD44=0, 0, 1), AD44/AF44),5) ->  | AL44: =ROUND(AL38+AL43,5) ->  | AN44: =ROUND(AN38+AN43,5) ->  | AP44: =ROUND((AL44-AN44),5) ->  | AR44: =ROUND(IF(AN44=0, IF(AL44=0, 0, 1), AL44/AN44),5) ->  | AT44: =ROUND(AT38+AT43,5) ->  | AV44: =ROUND(AV38+AV43,5) ->  | AX44: =ROUND((AT44-AV44),5) ->  | AZ44: =ROUND(IF(AV44=0, IF(AT44=0, 0, 1), AT44/AV44),5) ->  | BB44: =ROUND(BB38+BB43,5) ->  | BD44: =ROUND(BD38+BD43,5) ->  | BF44: =ROUND((BB44-BD44),5) ->  | BH44: =ROUND(IF(BD44=0, IF(BB44=0, 0, 1), BB44/BD44),5) ->  | BJ44: =BJ43+BJ38 -> 101942 | BL44: =BL43+BL38 -> 68854 | BN44: =BN43+BN38 -> 33088 | BP44: =ROUND(IF(BL44=0, IF(BJ44=0, 0, 1), BJ44/BL44),5) -> 1.48055 | BR44: =BR43+BR38 -> 34483 | BT44: =BT43+BT38 -> 8045 | BV44: =BV43+BV38 -> 26438 | BX44: =ROUND(IF(BT44=0, IF(BR44=0, 0, 1), BR44/BT44),5) -> 4.28626 | BZ44: =BZ43+BZ38 -> 254747 | CB44: =CB43+CB38 -> 83090 | CD44: =ROUND((BZ44-CB44),5) -> 171657 | CF44: =ROUND(IF(CB44=0, IF(BZ44=0, 0, 1), BZ44/CB44),5) -> 3.06592

Sheet YTD Revenue by Type
F1: Events- Member | H1: Events- Member Referral & Other | J1: Events-Club | L1: Member Services | N1: TOTAL
B2: Ordinary Income/Expense
D3: Income
E4: 40000 · Member Dues and Fees | F4: 0 | H4: 0 | J4: 0 | L4: 625550 | N4: =ROUND(SUM(F4:L4),5) -> 625550
E5: 40100 · Meal Sales | F5: 174128 | H5: 133652 | J5: 132369 | L5: 258093 | N5: 698242
E6: 40200 · Beverage Sales | F6: 15555 | H6: 10558 | J6: 875 | L6: 78076 | N6: 105064
E7: 40300 · Service Fees | F7: 25565 | H7: 15828 | J7: 200 | L7: 21921 | N7: 63514
E8: 40400 · Rental Income | F8: 10007 | H8: 23735 | J8: 0 | L8: 0 | N8: 33742
E9: 40800 · Other Income | F9: 1225 | H9: 1200 | J9: 0 | L9: 897 | N9: 3322
D10: Total Income | F10: =ROUND(SUM(F3:F9),5) -> 226480 | H10: =ROUND(SUM(H3:H9),5) -> 184973 | J10: =ROUND(SUM(J3:J9),5) -> 133444 | L10: =ROUND(SUM(L3:L9),5) -> 984537 | N10: 1529434
C11: Prior Year Revenues | F11: 184187 | H11: 206584 | J11: 101438 | L11: 939648 | N11: 1431857
C12: Change from Prior Year | F12: =F10-F11 -> 42293 | H12: =H10-H11 -> -21611 | J12: =J10-J11 -> 32006 | L12: =L10-L11 -> 44889 | N12: =N10-N11 -> 97577
C14: % of Total Revenues | F14: =F10/N10 -> 0.1480809241 | H14: =H10/N10 -> 0.1209421263 | J14: =J10/N10 -> 0.08725057766 | L14: =L10/N10 -> 0.643726372 | N14: 1

Sheet Aug-Sept Rev by type
F1: Events- Member | H1: Events- Member Referral & Other | J1: Events-Club | L1: Member Services | N1: TOTAL
B2: Ordinary Income/Expense
D3: Income
E4: 40000 · Member Dues and Fees | F4: 0 | H4: 0 | J4: 0 | L4: 152350 | N4: =ROUND(SUM(F4:L4),5) -> 152350
E5: 40100 · Meal Sales | F5: 57117 | H5: 67318 | J5: 33375 | L5: 54566 | N5: 212376
E6: 40200 · Beverage Sales | F6: 6200 | H6: 4400 | J6: 779 | L6: 18056 | N6: 29435
E7: 40300 · Service Fees | F7: 6477 | H7: 9071 | J7: 18 | L7: 5129 | N7: 20695
E8: 40400 · Rental Income | F8: 1550 | H8: 12470 | J8: 0 | L8: 0 | N8: 14020
E9: 40800 · Other Income | F9: 500 | H9: 400 | J9: 0 | L9: 202 | N9: 1102
D10: Total Income | F10: =ROUND(SUM(F3:F9),5) -> 71844 | H10: =ROUND(SUM(H3:H9),5) -> 93659 | J10: =ROUND(SUM(J3:J9),5) -> 34172 | L10: =ROUND(SUM(L3:L9),5) -> 230303 | N10: 429978
C11: Prior Year Revenues | F11: 41900 | H11: 52376 | J11: 24065 | L11: 197565 | N11: 315906
C12: Change from Prior Year | F12: =F10-F11 -> 29944 | H12: =H10-H11 -> 41283 | J12: =J10-J11 -> 10107 | L12: =L10-L11 -> 32738 | N12: =N10-N11 -> 114072
C14: % of Total Revenues | F14: =F10/N10 -> 0.1670876184 | H14: =H10/N10 -> 0.2178227723 | J14: =J10/N10 -> 0.07947383354 | L14: =L10/N10 -> 0.5356157757 | N14: 1

Sheet Balance Sheet
E2: Sep 30, 23 | G2: Sep 30, 22 | I2: $ Change | K2: % Change
A3: ASSETS
B4: Current Assets
C5: Checking/Savings
D6: 10000 · Bank Accounts | E6: 554269 | G6: 379246 | I6: =ROUND((E6-G6),5) -> 175023 | K6: =ROUND(IF(E6=0, IF(G6=0, 0, SIGN(-G6)), IF(G6=0, SIGN(E6), (E6-G6)/ABS(G6))),5) -> 0.4615
C7: Total Checking/Savings | E7: =ROUND(SUM(E5:E6),5) -> 554269 | G7: =ROUND(SUM(G5:G6),5) -> 379246 | I7: 175023 | K7: 0.4615
C8: Accounts Receivable | E8: 219212 | G8: 217360 | I8: 1852 | K8: 0.00852
C9: Other Current Assets | E9: 110027 | G9: 90181 | I9: 19846 | K9: 0.22007
B10: Total Current Assets | E10: =ROUND(E4+SUM(E7:E9),5) -> 883508 | G10: =ROUND(G4+SUM(G7:G9),5) -> 686787 | I10: 196721 | K10: 0.28644
B11: Fixed Assets | E11: 1065236 | G11: 1052103 | I11: 13133 | K11: 0.01248
A12: TOTAL ASSETS | E12: =ROUND(E3+SUM(E10:E11),5) -> 1948744 | G12: =ROUND(G3+SUM(G10:G11),5) -> 1738890 | I12: 209854 | K12: 0.12068
A13: LIABILITIES & EQUITY
B14: Liabilities
C15: Current Liabilities
D16: Accounts Payable | E16: 43941 | G16: 53581 | I16: =ROUND((E16-G16),5) -> -9640 | K16: =ROUND(IF(E16=0, IF(G16=0, 0, SIGN(-G16)), IF(G16=0, SIGN(E16), (E16-G16)/ABS(G16))),5) -> -0.17991
D17: Other Current Liabilities | E17: 20058 | G17: -4331 | I17: 24389 | K17: 5.63126
C18: Total Current Liabilities | E18: =ROUND(SUM(E15:E17),5) -> 63999 | G18: =ROUND(SUM(G15:G17),5) -> 49250 | I18: 14749 | K18: 0.29947
B19: Total Liabilities | E19: =ROUND(E14+E18,5) -> 63999 | G19: =ROUND(G14+G18,5) -> 49250 | I19: 14749 | K19: 0.29947
B20: Equity | E20: 1884746 | G20: 1689640 | I20: 195106 | K20: 0.11547
A21: TOTAL LIABILITIES & EQUITY | E21: =ROUND(E13+SUM(E19:E20),5) -> 1948745 | G21: =ROUND(G13+SUM(G19:G20),5) -> 1738890 | I21: 209855 | K21: 0.12068
